bitfinex/quotes_SOLUSD_20251124
["timestamp","ask_amount","ask_price","bid_price","bid_amount"]
[1763989041507,21.51433816,129.78,129.77,9.78882769]
[1763989049293,21.51433816,129.78,129.74,4.08]
[1763989049512,2.74337816,129.76,129.75,9.78882769]
[1763989049710,2.74337816,129.76,129.74,9.3]
[1763989049916,3.45337816,129.75,129.74,19.08882769]
[1763989050103,2.74337816,129.75,129.74,9.78882769]
[1763989050811,2.74337816,129.75,129.74,10.46882769]
[1763989050991,20.86433816,129.77,129.75,9.78882769]
[1763989051192,20.86433816,129.77,129.75,10.46882769]
[1763989051822,3.45337816,129.78,129.77,9.78882769]
[1763989052122,3.45337816,129.78,129.76,9.78882769]
[1763989052326,2.74337816,129.77,129.76,9.78882769]
[1763989052810,18.83096,129.79,129.76,0.68]
[1763989053004,3.45337816,129.78,129.76,0.68]
[1763989053213,2.74337816,129.77,129.76,9.78882769]
[1763989055220,18.12096,129.79,129.76,0.68]
[1763989055423,20.86433816,129.79,129.78,9.78882769]
[1763989056921,21.57433816,129.79,129.78,9.78882769]
[1763989057734,20.86433816,129.79,129.78,9.78882769]
[1763989060435,21.57433816,129.79,129.77,9.78882769]
[1763989060632,2.74337816,129.78,129.77,9.78882769]
[1763989060942,3.45337816,129.78,129.77,9.78882769]
[1763989062121,21.57433816,129.78,129.77,9.78882769]
[1763989063039,3.45337816,129.78,129.77,9.78882769]
[1763989066442,3.45337816,129.78,129.76,9.78882769]
[1763989066647,2.74337816,129.77,129.76,9.78882769]
[1763989073445,3.45337816,129.77,129.76,9.78882769]
[1763989074848,3.45337816,129.77,129.75,9.78882769]
[1763989075230,2.74337816,129.76,129.75,9.78882769]
[1763989075431,2.74337816,129.76,129.75,10.49882769]
[1763989077236,2.74337816,129.76,129.75,9.78882769]
[1763989077546,2.74337816,129.76,129.75,10.49882769]
[1763989080465,2.74337816,129.77,129.75,10.49882769]
[1763989080970,2.74337816,129.76,129.75,9.78882769]
[1763989081545,2.74337816,129.76,129.75,10.49882769]
[1763989084787,2.74337816,129.76,129.71,4.0303834]
[1763989084788,18.12096,129.75,129.71,4.0303834]
[1763989085000,18.12096,129.75,129.68,0.71]
[1763989085001,18.12096,129.71,129.68,0.71]
[1763989085147,18.12096,129.73,129.69,0.71]
[1763989085347,20.86433816,129.73,129.7,9.78882769]
[1763989085845,20.86433816,129.73,129.71,0.71]
[1763989086281,21.57433816,129.73,129.71,0.71]
[1763989086671,23.12037064,129.73,129.71,0.71]
[1763989088557,22.41037064,129.73,129.71,0.71]
[1763989089260,22.41037064,129.73,129.69,9.78882769]
[1763989089472,22.41037064,129.73,129.71,0.71]
[1763989092778,4.28941064,129.73,129.71,0.71]
[1763989094577,4.99941064,129.72,129.7,3.4]
[1763989095082,18.12096,129.75,129.7,0.71]
[1763989095287,4.99941064,129.72,129.71,9.78882769]
[1763989100387,4.28941064,129.72,129.71,9.78882769]
[1763989100890,4.99941064,129.73,129.71,9.78882769]
[1763989101386,0.71,129.72,129.71,9.78882769]
[1763989102095,4.28941064,129.74,129.71,0.71]
[1763989102275,4.28941064,129.74,129.72,0.71]
[1763989102970,4.94941064,129.74,129.72,0.71]
[1763989103371,4.94941064,129.73,129.7,9.78882769]
[1763989103697,4.28941064,129.72,129.71,9.78882769]
[1763989103995,4.94941064,129.72,129.71,9.78882769]
[1763989106095,4.28941064,129.72,129.71,9.78882769]
[1763989106308,4.28941064,129.73,129.71,10.44882769]
[1763989106680,4.94941064,129.73,129.71,10.44882769]
[1763989108583,0.66,129.73,129.71,10.44882769]
[1763989108790,4.94941064,129.73,129.71,10.44882769]
[1763989110091,4.94941064,129.73,129.71,13.84882769]
[1763989111899,4.94941064,129.73,129.71,13.18882769]
[1763989112107,4.94941064,129.73,129.71,13.84882769]
[1763989116707,4.28941064,129.73,129.71,13.84882769]
[1763989116891,4.94941064,129.73,129.71,13.84882769]
[1763989117089,4.28941064,129.72,129.71,13.84882769]
[1763989117292,4.94941064,129.72,129.7,9.3]
[1763989117509,4.94941064,129.71,129.7,19.08882769]
[1763989118519,23.07037064,129.71,129.7,9.3]
[1763989122730,23.07037064,129.71,129.69,9.78882769]
[1763989123027,4.28941064,129.7,129.69,9.78882769]
[1763989123239,4.28941064,129.7,129.69,10.44882769]
[1763989123744,4.94941064,129.7,129.69,9.78882769]
[1763989123917,4.28941064,129.7,129.69,9.78882769]
[1763989124417,4.28941064,129.7,129.69,10.44882769]
[1763989127741,4.09,129.73,129.69,10.44882769]
[1763989127935,18.12096,129.72,129.71,9.78882769]
[1763989128103,22.41037064,129.72,129.71,9.78882769]
[1763989128310,23.10037064,129.72,129.71,9.78882769]
[1763989131733,18.12096,129.72,129.71,10.47882769]
[1763989132539,4.28941064,129.73,129.71,10.47882769]
[1763989132835,10.16642439,129.73,129.71,10.47882769]
[1763989133041,10.16642439,129.73,129.71,13.87882769]
[1763989136636,9.49642439,129.73,129.72,0.66]
[1763989136826,4.28941064,129.73,129.72,0.66]
[1763989137412,4.28941064,129.73,129.71,13.84882769]
[1763989137614,4.28941064,129.73,129.72,0.66]
[1763989137814,4.28941064,129.73,129.71,13.84882769]
[1763989138117,4.95941064,129.73,129.71,13.84882769]
[1763989139040,4.28941064,129.73,129.71,13.18882769]
[1763989139242,4.95941064,129.73,129.71,13.84882769]
[1763989140848,4.03166412,129.74,129.73,9.78882769]
[1763989141030,4.03166412,129.74,129.73,17.47823833]
[1763989141228,9.49486957,129.78,129.73,18.42256147]
[1763989141450,4.03017002,129.77,129.74,0.66]
[1763989141632,4.03017002,129.77,129.76,9.78882769]
[1763989142120,4.03017002,129.77,129.76,10.44882769]
[1763989142326,4.03017002,129.77,129.76,19.94369726]
[1763989142628,4.03017002,129.77,129.76,10.44882769]
[1763989142826,8.98958066,129.77,129.76,9.78882769]
[1763989144443,8.98958066,129.77,129.73,13.18882769]
[1763989144753,4.28941064,129.75,129.73,13.84882769]
[1763989145634,4.28941064,129.75,129.74,10.44882769]
[1763989146842,4.28941064,129.75,129.74,9.78882769]
[1763989148454,4.95941064,129.75,129.74,9.78882769]
[1763989148633,3.41435556,129.75,129.74,9.78882769]
[1763989153152,2.74435556,129.75,129.74,9.78882769]
[1763989153539,20.86531556,129.76,129.74,10.44882769]
[1763989153740,4.03017002,129.77,129.75,13.84882769]
[1763989153965,6.77452558,129.77,129.76,0.66]
[1763989154640,6.77452558,129.77,129.75,13.84882769]
[1763989154839,2.74435556,129.76,129.75,13.84882769]
[1763989156146,24.89548558,129.77,129.75,13.84882769]
[1763989156561,24.89548558,129.77,129.75,13.18882769]
[1763989156769,4.03017002,129.77,129.76,10.44882769]
[1763989160971,2.74435556,129.79,129.76,19.74882769]
[1763989161265,0.67,129.79,129.78,9.78882769]
[1763989161478,2.74435556,129.79,129.78,9.78882769]
[1763989164741,2.74435556,129.79,129.78,10.48882769]
[1763989164947,3.39435556,129.79,129.78,9.78882769]
[1763989165258,3.39435556,129.79,129.77,9.3]
[1763989165464,21.51531556,129.78,129.77,9.3]
[1763989167071,3.39435556,129.78,129.77,9.3]
[1763989167259,21.51531556,129.78,129.77,9.3]
[1763989167946,3.39435556,129.78,129.77,9.3]
[1763989170351,3.39435556,129.78,129.76,9.78882769]
[1763989170555,3.39435556,129.77,129.76,9.78882769]
[1763989171079,2.74435556,129.77,129.76,9.78882769]
[1763989171453,3.39435556,129.77,129.76,9.78882769]
[1763989172670,2.74435556,129.77,129.76,9.78882769]
[1763989174360,3.39435556,129.77,129.76,9.78882769]
[1763989175172,4.02964113,129.8,129.76,9.78882769]
[1763989175382,18.12096,129.79,129.78,9.78882769]
[1763989176158,18.77096,129.79,129.78,9.78882769]
[1763989176551,18.12096,129.78,129.77,0.7]
[1763989176752,3.39435556,129.78,129.77,13.18882769]
[1763989177756,2.74435556,129.78,129.77,13.18882769]
[1763989177952,3.39435556,129.78,129.76,9.3]
[1763989178157,2.74435556,129.77,129.76,9.3]
[1763989178373,2.74435556,129.77,129.75,10.48882769]
[1763989178680,2.74435556,129.76,129.75,10.48882769]
[1763989179386,2.74435556,129.77,129.75,10.48882769]
[1763989180680,2.74435556,129.78,129.77,9.78882769]
[1763989181061,2.74435556,129.78,129.77,10.48882769]
[1763989181678,2.74435556,129.78,129.77,9.78882769]
[1763989181872,3.39435556,129.78,129.77,9.78882769]
[1763989185365,2.74435556,129.78,129.77,9.78882769]
[1763989186882,4.02964113,129.8,129.77,10.44882769]
[1763989187059,2.74435556,129.79,129.78,13.84882769]
[1763989187263,6.77399669,129.8,129.78,13.84882769]
[1763989187763,2.74435556,129.79,129.78,13.84882769]
[1763989189785,2.74435556,129.79,129.78,3.4]
[1763989190492,3.46435556,129.79,129.73,105.1286787]
[1763989190779,2.74435556,129.77,129.74,22.24096]
[1763989191576,2.74435556,129.77,129.75,3.4]
[1763989191884,2.74435556,129.77,129.76,9.78882769]
[1763989192186,2.74435556,129.77,129.76,11.68882769]
[1763989193187,2.74435556,129.78,129.76,11.68882769]
[1763989193962,2.74435556,129.77,129.76,11.68882769]
[1763989194690,3.42435556,129.77,129.76,11.68882769]
[1763989195063,2.74435556,129.77,129.76,11.68882769]
[1763989195493,6.77434335,129.77,129.76,11.68882769]
[1763989197097,6.77434335,129.77,129.76,9.78882769]
[1763989198484,7.45434335,129.77,129.75,1.9]
[1763989198665,2.74435556,129.76,129.75,11.68882769]
[1763989199876,3.42435556,129.76,129.75,11.68882769]
[1763989200074,3.42435556,129.76,129.72,1.9]
[1763989200403,2.74435556,129.73,129.71,13.18882769]
[1763989200896,2.74435556,129.74,129.71,13.84882769]
[1763989201204,7.94869809,129.76,129.72,0.66]
[1763989201400,2.74435556,129.76,129.73,3.4]
[1763989202299,2.74435556,129.75,129.73,3.4]
[1763989203199,2.74435556,129.74,129.73,3.4]
[1763989203571,2.74435556,129.74,129.71,11.68882769]
[1763989203774,2.74435556,129.73,129.71,15.08882769]
[1763989203989,2.74435556,129.73,129.71,13.18882769]
[1763989205311,3.42435556,129.74,129.71,15.08882769]
[1763989205520,2.74435556,129.74,129.71,15.74882769]
[1763989205805,2.74435556,129.74,129.71,15.08882769]
[1763989207618,2.74435556,129.74,129.71,15.74882769]
[1763989207776,3.42435556,129.74,129.71,15.74882769]
[1763989208678,4.96857685,129.74,129.71,15.74882769]
[1763989209484,4.96857685,129.74,129.71,15.08882769]
[1763989210094,4.96857685,129.74,129.71,15.74882769]
[1763989210806,4.28857685,129.72,129.71,9.78882769]
[1763989210989,4.28857685,129.72,129.7,9.78882769]
[1763989211316,4.96857685,129.71,129.7,9.78882769]
[1763989213402,4.96857685,129.71,129.68,9.78882769]
[1763989213712,4.28857685,129.7,129.68,12.34882769]
[1763989214785,4.96857685,129.7,129.68,11.68882769]
[1763989215112,4.28857685,129.7,129.68,11.68882769]
[1763989215686,4.28857685,129.7,129.68,12.34882769]
[1763989220197,4.96857685,129.71,129.68,12.34882769]
[1763989220417,4.96857685,129.71,129.68,11.68882769]
[1763989220715,0.68,129.7,129.68,11.68882769]
[1763989220892,0.68,129.7,129.68,9.78882769]
[1763989220893,4.96857685,129.7,129.68,9.78882769]
[1763989221314,0.68,129.69,129.68,9.78882769]
[1763989222323,22.40953685,129.7,129.68,9.78882769]
[1763989222494,23.06953685,129.7,129.68,9.78882769]
[1763989225604,27.10196178,129.7,129.68,9.78882769]
[1763989225812,18.12096,129.68,129.67,9.78882769]
[1763989226014,22.40953685,129.68,129.65,9.98882769]
[1763989226219,0.66,129.67,129.65,9.98882769]
[1763989227437,4.94857685,129.67,129.65,9.98882769]
[1763989227616,4.28857685,129.67,129.65,10.69882769]
[1763989228013,22.40953685,129.68,129.65,9.98882769]
[1763989228222,0.66,129.67,129.65,9.98882769]
[1763989228424,18.12096,129.68,129.66,0.71]
[1763989228832,18.12096,129.68,129.65,9.98882769]
[1763989228833,23.06953685,129.68,129.65,9.98882769]
[1763989229038,23.06953685,129.68,129.65,10.69882769]
[1763989232244,0.66,129.67,129.65,9.98882769]
[1763989232445,4.94857685,129.67,129.65,9.98882769]
[1763989232848,0.66,129.66,129.65,9.98882769]
[1763989233017,4.94857685,129.67,129.65,9.98882769]
[1763989233651,0.66,129.67,129.65,9.98882769]
[1763989233942,4.94857685,129.66,129.65,0.2]
[1763989234315,9.2371537,129.66,129.65,0.2]
[1763989235356,19.22598139,129.66,129.65,0.2]
[1763989235533,9.2371537,129.66,129.65,0.2]
[1763989235844,12.33013649,129.66,129.65,0.2]
[1763989236053,12.61445963,129.66,129.65,0.2]
[1763989238533,12.7566212,129.66,129.65,0.2]
[1763989239145,26.46953685,129.66,129.65,0.2]
[1763989239447,4.94857685,129.68,129.65,10.69882769]
[1763989239657,4.03242493,129.7,129.65,14.98740454]
[1763989239825,7.12492947,129.7,129.67,9.78882769]
[1763989240018,4.03242493,129.7,129.67,14.07740454]
[1763989240224,4.03242493,129.7,129.68,0.71]
[1763989240850,4.03242493,129.7,129.68,4.99857685]
[1763989241347,4.03242493,129.7,129.69,0.71]
[1763989241533,4.03242493,129.7,129.69,10.49882769]
[1763989242055,4.03242493,129.7,129.69,14.78740454]
[1763989242238,4.03242493,129.7,129.69,10.49882769]
[1763989242439,4.03242493,129.7,129.69,14.78740454]
[1763989242935,0.66,129.74,129.69,14.78740454]
[1763989243135,0.66,129.76,129.71,9.78882769]
[1763989243335,4.03104812,129.75,129.71,14.07740454]
[1763989243537,8.31962497,129.75,129.72,0.71]
[1763989243852,8.31962497,129.75,129.72,5.65857685]
[1763989244062,4.03104812,129.75,129.72,5.65857685]
[1763989244354,4.03104812,129.75,129.74,9.78882769]
[1763989245926,4.03104812,129.75,129.74,0.71]
[1763989246852,4.03104812,129.75,129.74,0.65]
[1763989247541,4.03104812,129.75,129.73,10.43882769]
[1763989247930,4.03104812,129.75,129.74,0.65]
[1763989248530,4.03104812,129.75,129.73,13.83882769]
[1763989248834,4.03104812,129.75,129.73,13.18882769]
[1763989249029,4.03104812,129.75,129.74,0.65]
[1763989250638,4.03104812,129.75,129.74,27.91623223]
[1763989253279,4.28857685,129.79,129.75,9.78882769]
[1763989253565,4.02967224,129.78,129.75,9.78882769]
[1763989253748,4.71967224,129.78,129.75,10.44882769]
[1763989254065,4.71967224,129.78,129.75,29.25978769]
[1763989254563,4.71967224,129.78,129.75,28.59978769]
[1763989254564,9.00824909,129.78,129.75,28.59978769]
[1763989254859,4.28857685,129.77,129.75,29.25978769]
[1763989255368,4.97857685,129.77,129.75,28.59978769]
[1763989256442,4.97857685,129.77,129.75,30.49978769]
[1763989256741,4.97857685,129.77,129.75,11.68882769]
[1763989256950,4.28857685,129.76,129.75,11.68882769]
[1763989257152,4.97857685,129.77,129.75,11.68882769]
[1763989258868,0.69,129.76,129.75,11.68882769]
[1763989259167,4.97857685,129.76,129.75,11.68882769]
[1763989259375,4.97857685,129.76,129.75,9.78882769]
[1763989259581,0.69,129.76,129.73,5.3]
[1763989259876,0.69,129.76,129.73,5.96]
[1763989260390,4.02967224,129.78,129.75,9.78882769]
[1763989260535,4.71967224,129.78,129.75,10.44882769]
[1763989260960,9.00824909,129.78,129.75,20.89765538]
[1763989261338,4.71967224,129.78,129.75,20.89765538]
[1763989262058,4.02967224,129.78,129.77,9.78882769]
[1763989262665,4.02967224,129.78,129.76,9.78882769]
[1763989262965,4.02967224,129.78,129.76,13.18882769]
[1763989263133,4.02967224,129.78,129.76,15.08882769]
[1763989263337,4.02967224,129.78,129.77,0.66]
[1763989265257,4.02967224,129.78,129.76,15.08882769]
[1763989265573,4.02967224,129.78,129.76,37.26978769]
[1763989266145,4.71967224,129.78,129.76,36.60978769]
[1763989266352,4.97857685,129.77,129.76,11.68882769]
[1763989266552,4.97857685,129.77,129.75,9.78882769]
[1763989266753,4.28857685,129.77,129.75,9.78882769]
[1763989267069,4.28857685,129.76,129.75,9.78882769]
[1763989269371,4.97857685,129.76,129.74,9.78882769]
[1763989269579,4.28857685,129.75,129.74,9.78882769]
[1763989269761,4.97857685,129.76,129.74,9.78882769]
[1763989269959,4.28857685,129.76,129.74,9.78882769]
[1763989270578,2.743784,129.76,129.74,9.78882769]
[1763989270874,3.433784,129.76,129.74,9.78882769]
[1763989271757,4.02967224,129.78,129.75,0.66]
[1763989271959,6.77345624,129.78,129.76,3.4]
[1763989272176,4.02967224,129.78,129.77,9.78882769]
[1763989272359,4.02967224,129.78,129.77,13.18882769]
[1763989273254,4.02967224,129.78,129.77,18.49261169]
[1763989273449,3.433784,129.81,129.77,18.49261169]
[1763989273658,25.583692,129.81,129.79,9.78882769]
[1763989273887,25.583692,129.81,129.77,18.49261169]
[1763989274763,24.893692,129.81,129.77,18.49261169]
[1763989274965,0.69,129.8,129.77,18.49261169]
[1763989275276,25.583692,129.81,129.77,18.49261169]
[1763989275659,25.583692,129.81,129.79,2.743784]
[1763989275660,4.028948,129.81,129.79,2.743784]
[1763989275863,3.433784,129.84,129.81,9.78882769]
[1763989276167,4.02820182,129.83,129.81,9.78882769]
[1763989276466,7.46198582,129.83,129.82,13.22261169]
[1763989276677,6.77198582,129.83,129.82,13.22261169]
[1763989277358,7.46198582,129.83,129.8,9.78882769]
[1763989277566,3.433784,129.82,129.81,23.01143938]
[1763989280480,0.69,129.82,129.81,23.01143938]
[1763989281754,6.77198582,129.83,129.81,23.01143938]
[1763989281964,4.71820182,129.83,129.81,23.01143938]
[1763989282170,0.69,129.82,129.81,23.01143938]
[1763989282662,4.02820182,129.83,129.81,23.01143938]
[1763989285593,4.02820182,129.83,129.82,9.78882769]
[1763989285881,4.02820182,129.83,129.82,28.00978769]
[1763989286294,4.02820182,129.83,129.82,18.22096]
[1763989286295,7.47198582,129.83,129.82,18.22096]
[1763989286458,25.59294582,129.83,129.78,9.78882769]
[1763989286660,2.743784,129.8,129.78,9.78882769]
[1763989287063,3.443784,129.8,129.78,9.78882769]
[1763989287864,2.743784,129.81,129.78,9.78882769]
[1763989288073,3.443784,129.82,129.79,0.65]
[1763989289297,3.443784,129.81,129.78,9.78882769]
[1763989289500,3.443784,129.81,129.78,10.43882769]
[1763989290070,2.743784,129.79,129.77,18.22096]
[1763989290271,31.83988,129.78,129.75,9.78882769]
[1763989290472,2.743784,129.76,129.73,9.78882769]
[1763989290679,2.743784,129.75,129.73,9.78882769]
[1763989291081,0.7,129.77,129.69,18.12096]
[1763989291082,3.443784,129.74,129.69,0.65]
[1763989291280,18.82096,129.74,129.69,25.67096]
[1763989291480,2.743784,129.71,129.69,4.05]
[1763989291771,2.743784,129.71,129.7,9.78882769]
[1763989291997,2.743784,129.71,129.69,9.78882769]
[1763989292180,2.743784,129.7,129.68,4.03188497]
[1763989292674,2.743784,129.7,129.68,4.68188497]
[1763989292873,2.743784,129.7,129.69,9.78882769]
[1763989293087,3.443784,129.7,129.69,9.78882769]
[1763989293601,18.12096,129.69,129.68,4.03188497]
[1763989293906,21.564744,129.69,129.66,9.78882769]
[1763989294208,3.443784,129.68,129.66,9.78882769]
[1763989296511,0.7,129.67,129.65,9.98882769]
[1763989296903,3.443784,129.67,129.65,9.98882769]
[1763989297774,20.864744,129.69,129.66,0.65]
[1763989297996,20.864744,129.69,129.65,10.63882769]
[1763989298205,0.7,129.68,129.65,10.63882769]
[1763989299424,20.864744,129.69,129.65,13.38261169]
[1763989299589,3.443784,129.69,129.66,0.65]
[1763989300896,2.743784,129.7,129.66,3.393784]
[1763989301109,3.443784,129.7,129.66,3.393784]
[1763989301312,0.7,129.7,129.68,9.78882769]
[1763989301716,2.743784,129.72,129.68,9.78882769]
[1763989301915,3.443784,129.72,129.68,9.78882769]
[1763989302125,0.7,129.71,129.68,10.43882769]
[1763989302307,3.443784,129.71,129.68,10.43882769]
[1763989302624,2.743784,129.7,129.68,9.78882769]
[1763989302927,3.443784,129.7,129.68,9.78882769]
[1763989303634,3.443784,129.71,129.68,9.78882769]
[1763989306341,0.69,129.7,129.68,9.78882769]
[1763989306639,4.72221134,129.7,129.68,9.78882769]
[1763989306834,7.46599534,129.7,129.68,9.78882769]
[1763989307036,3.433784,129.69,129.68,9.78882769]
[1763989307250,3.433784,129.69,129.66,9.78882769]
[1763989307840,6.77599534,129.7,129.67,0.68]
[1763989308130,4.03221134,129.7,129.68,9.78882769]
[1763989309149,4.03221134,129.7,129.69,9.78882769]
[1763989310227,4.03221134,129.7,129.69,0.68]
[1763989310815,4.03221134,129.7,129.68,9.78882769]
[1763989311142,4.03221134,129.7,129.68,10.46882769]
[1763989312750,4.03221134,129.7,129.69,0.66]
[1763989313121,4.03221134,129.7,129.67,10.44882769]
[1763989313718,4.03221134,129.7,129.68,0.66]
[1763989314219,4.72221134,129.7,129.67,10.44882769]
[1763989315447,7.46599534,129.7,129.67,10.44882769]
[1763989315941,0.69,129.69,129.67,9.78882769]
[1763989316313,3.433784,129.69,129.67,9.78882769]
[1763989316517,2.743784,129.68,129.66,1.9]
[1763989316754,3.433784,129.68,129.66,1.9]
[1763989317042,3.433784,129.68,129.65,9.98882769]
[1763989317243,3.433784,129.68,129.65,10.64882769]
[1763989319027,0.69,129.67,129.65,9.98882769]
[1763989319827,2.743784,129.68,129.65,10.64882769]
[1763989320026,0.69,129.68,129.65,10.64882769]
[1763989320639,0.69,129.68,129.65,9.98882769]
[1763989320941,0.69,129.68,129.65,0.2]
[1763989320942,2.743784,129.67,129.65,0.2]
[1763989321151,3.433784,129.68,129.65,0.2]
[1763989321444,0.69,129.68,129.65,0.2]
[1763989321618,0.69,129.67,129.65,0.2]
[1763989322032,18.12096,129.69,129.65,0.2]
[1763989322347,21.554744,129.69,129.65,0.86]
[1763989322534,20.864744,129.69,129.65,0.86]
[1763989322741,0.69,129.68,129.65,0.86]
[1763989323547,0.69,129.69,129.66,0.66]
[1763989323848,22.15317134,129.7,129.67,9.78882769]
[1763989324145,4.72221134,129.7,129.67,13.19261169]
[1763989324651,4.72221134,129.7,129.67,10.44882769]
[1763989325236,4.03221134,129.7,129.67,9.78882769]
[1763989325544,7.46599534,129.7,129.67,10.44882769]
[1763989325850,4.72221134,129.7,129.67,10.44882769]
[1763989328447,4.03221134,129.7,129.69,9.78882769]
[1763989328745,4.03221134,129.7,129.69,10.44882769]
[1763989330243,4.72221134,129.7,129.69,9.78882769]
[1763989331930,4.03221134,129.7,129.69,9.78882769]
[1763989332226,4.72221134,129.7,129.69,9.78882769]
[1763989332928,4.03221134,129.7,129.69,9.78882769]
[1763989335131,4.03221134,129.7,129.69,10.44882769]
[1763989335755,4.03221134,129.7,129.69,9.78882769]
[1763989336846,0.69,129.74,129.69,20.03964084]
[1763989337049,4.03129939,129.73,129.71,9.78882769]
[1763989337561,4.03129939,129.73,129.69,9.59081315]
[1763989337767,9.01211254,129.73,129.71,9.78882769]
[1763989338141,4.72129939,129.73,129.71,9.78882769]
[1763989339758,4.72129939,129.73,129.7,10.44882769]
[1763989342141,4.03129939,129.73,129.71,0.66]
[1763989342544,4.03129939,129.73,129.71,2.56]
[1763989343565,4.03129939,129.73,129.72,10.48882769]
[1763989343769,0.72,129.77,129.73,9.78882769]
[1763989344068,3.54216157,129.8,129.75,9.78882769]
[1763989344069,4.03049454,129.76,129.75,9.78882769]
[1763989344472,4.03049454,129.76,129.75,10.48882769]
[1763989344851,4.03049454,129.76,129.75,9.78882769]
[1763989346368,4.75049454,129.76,129.75,9.78882769]
[1763989346557,9.04130769,129.76,129.73,9.78882769]
[1763989347581,4.75049454,129.76,129.73,10.48882769]
[1763989348082,4.03049454,129.76,129.74,0.7]
[1763989348379,4.03049454,129.76,129.75,9.78882769]
[1763989349160,4.03049454,129.76,129.75,10.48882769]
[1763989349667,18.12096,129.79,129.75,18.17964084]
[1763989349878,22.15068557,129.79,129.77,9.78882769]
[1763989350180,22.87068557,129.79,129.77,9.78882769]
[1763989350672,4.74972557,129.79,129.77,9.78882769]
[1763989351364,4.02972557,129.79,129.77,10.48882769]
[1763989351875,4.02972557,129.79,129.78,10.48882769]
[1763989353156,4.02972557,129.79,129.76,1.9]
[1763989353363,5.01081315,129.78,129.75,9.78882769]
[1763989357865,5.01081315,129.78,129.75,10.48882769]
[1763989358493,5.01081315,129.77,129.75,9.78882769]
[1763989358687,5.01081315,129.77,129.73,9.78882769]
[1763989358928,5.01081315,129.76,129.73,10.48882769]
[1763989360592,0.72,129.76,129.73,10.48882769]
[1763989361221,5.01081315,129.78,129.75,9.78882769]
[1763989361729,0.72,129.77,129.75,9.78882769]
[1763989362606,5.01081315,129.77,129.75,9.78882769]
[1763989364715,23.13177315,129.76,129.73,1.9]
[1763989365021,4.29081315,129.75,129.74,9.78882769]
[1763989365212,5.01081315,129.75,129.74,9.78882769]
[1763989365913,5.01081315,129.75,129.73,1.9]
[1763989366122,0.68,129.74,129.73,1.9]
[1763989366318,4.29081315,129.75,129.73,1.9]
[1763989366522,4.97081315,129.75,129.73,1.9]
[1763989369334,4.97081315,129.75,129.72,11.68882769]
[1763989369521,4.97081315,129.75,129.72,12.35882769]
[1763989369723,0.68,129.75,129.72,12.35882769]
[1763989369926,4.97081315,129.75,129.72,12.35882769]
[1763989371199,0.68,129.74,129.72,11.68882769]
[1763989371405,0.68,129.74,129.71,9.78882769]
[1763989371613,4.97081315,129.74,129.71,10.45882769]
[1763989372132,4.29081315,129.76,129.72,0.67]
[1763989372329,22.41177315,129.76,129.72,0.67]
[1763989372504,23.12177315,129.76,129.72,0.67]
[1763989373215,0.71,129.75,129.72,0.67]
[1763989373909,0.71,129.75,129.71,4.29081315]
[1763989373910,4.29081315,129.74,129.71,0.72]
[1763989374109,4.29081315,129.74,129.7,9.78882769]
[1763989374316,5.00081315,129.74,129.7,10.50882769]
[1763989374520,4.29081315,129.73,129.71,0.72]
[1763989374831,5.00081315,129.75,129.71,5.01081315]
[1763989375330,5.00081315,129.75,129.72,0.72]
[1763989375705,4.29081315,129.76,129.72,5.01081315]
[1763989375926,5.00081315,129.77,129.73,9.78882769]
[1763989376129,5.00081315,129.77,129.73,10.50882769]
[1763989376318,5.00081315,129.77,129.74,0.72]
[1763989376724,0.71,129.77,129.75,9.78882769]
[1763989376928,5.00081315,129.78,129.75,9.78882769]
[1763989377118,5.00081315,129.78,129.75,10.50882769]
[1763989377314,0.71,129.77,129.75,9.78882769]
[1763989379034,4.29081315,129.76,129.73,10.50882769]
[1763989379229,4.29081315,129.76,129.74,9.78882769]
[1763989379532,5.00081315,129.76,129.74,9.78882769]
[1763989379731,5.00081315,129.75,129.71,0.72]
[1763989380031,5.00081315,129.75,129.72,10.50882769]
[1763989380230,4.03081911,129.75,129.72,10.50882769]
[1763989380527,4.74081911,129.75,129.72,10.50882769]
[1763989380730,9.03163226,129.75,129.72,10.50882769]
[1763989381121,0.71,129.74,129.72,11.68882769]
[1763989383118,8.32163226,129.75,129.72,12.40882769]
[1763989383322,8.32163226,129.75,129.72,11.68882769]
[1763989383518,9.03163226,129.75,129.72,12.40882769]
[1763989384941,8.32163226,129.75,129.72,11.68882769]
[1763989385120,4.74081911,129.75,129.72,12.40882769]
[1763989387524,9.03163226,129.75,129.72,12.40882769]
[1763989388431,0.71,129.74,129.72,11.68882769]
[1763989388832,5.00081315,129.74,129.72,11.68882769]